fUST/lending_fUST_20240930
["ID","MTS","AMOUNT","RATE_DAILY","PERIOD"]
[339537831,1727682656336,-500.0,0.00014659,2]
[339537832,1727682656346,-500.0,0.00014659,2]
[339537833,1727682656355,-500.0,0.00014659,2]
[339537834,1727682656369,-542.24,0.00014659,2]
[339537835,1727682656378,-154.395563,0.00014659,2]
[339537836,1727682656387,-500.0,0.00014659,2]
[339537837,1727682656398,-500.0,0.00014659,2]
[339537838,1727682656409,-500.0,0.00014659,2]
[339537839,1727682656419,-566.54,0.00014659,2]
[339537840,1727682656428,-628.68,0.00014659,2]
[339537841,1727682656439,-631.52,0.00014659,2]
[339537842,1727682656448,-500.0,0.00014659,2]
[339537843,1727682656458,-504.42089867,0.00014659,2]
[339537844,1727682656468,-403.053036,0.00014659,2]
[339537845,1727682656477,-534.3,0.00014659,2]
[339537846,1727682656486,-500.0,0.00014659,2]
[339537847,1727682656495,-403.053036,0.00014659,2]
[339537848,1727682656505,-500.0,0.00014659,2]
[339537849,1727682656514,-151.0,0.00014659,2]
[339537850,1727682656524,-500.0,0.00014659,2]
[339537851,1727682656534,-580.67,0.00014659,2]
[339537852,1727682656544,-507.84054313,0.00014659,2]
[339537853,1727682656553,-500.0,0.00014659,2]
[339537854,1727682656562,-151.0,0.00014659,2]
[339537855,1727682656571,-500.0,0.00014659,2]
[339537856,1727682656581,-818.17,0.00014659,2]
[339537857,1727682656590,-617.16,0.00014659,2]
[339537858,1727682656600,-500.0,0.00014659,2]
[339537859,1727682656609,-505.54388792,0.00014659,2]
[339537860,1727682656618,-374.18736134,0.00014659,2]
[339537861,1727682656628,-500.0,0.00014659,2]
[339537862,1727682656637,-399.972793,0.00014659,2]
[339537863,1727682656647,-151.0,0.00014659,2]
[339537864,1727682656657,-500.0,0.00014659,2]
[339537865,1727682656666,-500.0,0.00014659,2]
[339537866,1727682656675,-500.0,0.00014659,2]
[339537867,1727682656685,-3494.75,0.00014659,2]
[339537868,1727682656694,-500.0,0.00014659,2]
[339537869,1727682656704,-500.0,0.00014659,2]
[339537870,1727682656715,-399.972793,0.00014659,2]
[339537871,1727682656724,-500.0,0.00014659,2]
[339537872,1727682656734,-500.0,0.00014659,2]
[339537873,1727682656744,-500.0,0.00014659,2]
[339537874,1727682656754,-500.0,0.00014659,2]
[339537875,1727682656764,-500.0,0.00014659,2]
[339537876,1727682656775,-151.0,0.00014659,2]
[339537877,1727682656786,-933.96,0.00014659,2]
[339537878,1727682656796,-500.0,0.00014659,2]
[339537879,1727682656805,-573.39,0.00014659,2]
[339537880,1727682656815,-730.97,0.00014659,2]
[339537881,1727682656824,-1590.015161,0.00014659,2]
[339537882,1727682656833,-817.62,0.00014659,2]
[339537883,1727682656843,-500.0,0.00014659,2]
[339537884,1727682656853,-578.11,0.00014659,2]
[339537885,1727682656862,-500.0,0.00014659,2]
[339537886,1727682656872,-500.0,0.00014659,2]
[339537887,1727682656882,-500.0,0.00014659,2]
[339537888,1727682656892,-428.22520136,0.00014659,2]
[339537889,1727682656902,-1590.015161,0.00014659,2]
[339537890,1727682656912,-500.0,0.00014659,2]
[339537891,1727682656921,-500.0,0.00014659,2]
[339537892,1727682656931,-616.83152426,0.00014659,2]
[339537893,1727682656941,-500.0,0.00014659,2]
[339537894,1727682656951,-500.0,0.00014659,2]
[339537895,1727682656960,-500.0,0.00014659,2]
[339537896,1727682656970,-500.0,0.00014659,2]
[339537897,1727682656979,-569.45,0.00014659,2]
[339537898,1727682656989,-151.0,0.00014659,2]
[339537899,1727682656998,-500.0,0.00014659,2]
[339537900,1727682657008,-151.0,0.00014659,2]
[339537901,1727682657017,-500.0,0.00014659,2]
[339537902,1727682657027,-500.0,0.00014659,2]
[339537903,1727682657036,-500.0,0.00014659,2]
[339537904,1727682657046,-500.0,0.00014659,2]
[339537905,1727682657055,-500.0,0.00014659,2]
[339537906,1727682657065,-500.0,0.00014659,2]
[339537907,1727682657075,-500.0,0.00014659,2]
[339537908,1727682657086,-518.1299624,0.00014659,2]
[339537909,1727682657096,-500.0,0.00014659,2]
[339537910,1727682657106,-1289.37,0.00014659,2]
[339537911,1727682657116,-547.6,0.00014659,2]
[339537912,1727682657127,-500.0,0.00014659,2]
[339537913,1727682657136,-500.0,0.00014659,2]
[339537914,1727682657146,-1115.79,0.00014659,2]
[339537915,1727682657155,-509.26,0.00014659,2]
[339537916,1727682657165,-1779.11,0.00014659,2]
[339537917,1727682657176,-500.0,0.00014659,2]
[339537918,1727682657185,-500.0,0.00014659,2]
[339537919,1727682657194,-479.9996251,0.00014659,2]
[339537920,1727682657204,-500.0,0.00014659,2]
[339537921,1727682657214,-500.0,0.00014659,2]
[339537922,1727682657224,-1671.43,0.00014659,2]
[339537923,1727682657233,-500.0,0.00014659,2]
[339537924,1727682657243,-599.95,0.00014659,2]
[339537925,1727682657252,-3384.84,0.00014659,2]
[339537926,1727682657261,-581.735919,0.00014659,2]
[339537927,1727682657270,-500.0,0.00014659,2]
[339537928,1727682657279,-1099.763884,0.00014659,2]
[339537929,1727682657289,-500.0,0.00014659,2]
[339537930,1727682657299,-500.0,0.00014659,2]
[339537931,1727682657309,-581.735919,0.00014659,2]
[339537932,1727682657318,-500.0,0.00014659,2]
[339537933,1727682657327,-500.0,0.00014659,2]
[339537934,1727682657336,-500.0,0.00014659,2]
[339537935,1727682657346,-1099.763884,0.00014659,2]
[339537936,1727682657355,-151.0,0.00014659,2]
[339537937,1727682657366,-151.0,0.00014659,2]
[339537938,1727682657377,-500.0,0.00014659,2]
[339537939,1727682657386,-151.0,0.00014659,2]
[339537940,1727682657454,-500.0,0.00014659,2]
[339537941,1727682657463,-500.0,0.00014659,2]
[339537942,1727682657472,-500.0,0.00014659,2]
[339537943,1727682657481,-310.0,0.00014659,2]
[339537944,1727682657491,-310.0,0.00014659,2]
[339537945,1727682657500,-310.0,0.00014659,2]
[339537946,1727682657510,-310.0,0.00014659,2]
[339537947,1727682657520,-151.0,0.00014659,2]
[339537948,1727682657530,-310.0,0.00014659,2]
[339537949,1727682657540,-310.0,0.00014659,2]
[339537950,1727682657550,-500.0,0.00014659,2]
[339537951,1727682657560,-500.0,0.00014659,2]
[339537952,1727682657570,-310.0,0.00014659,2]
[339537953,1727682657579,-310.0,0.00014659,2]
[339537954,1727682657589,-310.0,0.00014659,2]
[339537955,1727682657599,-310.0,0.00014659,2]
[339537956,1727682657609,-310.0,0.00014659,2]
[339537957,1727682657619,-500.0,0.00014659,2]
[339537958,1727682657629,-310.0,0.00014659,2]
[339537959,1727682657639,-1869.88,0.00014659,2]
[339537960,1727682657648,-310.0,0.00014659,2]
[339537961,1727682657657,-500.0,0.00014659,2]
[339537962,1727682657667,-310.0,0.00014659,2]
[339537963,1727682657677,-310.0,0.00014659,2]
[339537964,1727682657686,-310.0,0.00014659,2]
[339537965,1727682657696,-359.098242,0.00014659,2]
[339537966,1727682657706,-578.656391,0.00014659,2]
[339537967,1727682657715,-500.0,0.00014659,2]
[339537968,1727682657725,-533.28926176,0.00014659,2]
[339537969,1727682657735,-1549.06,0.00014659,2]
[339537970,1727682657745,-569.86,0.00014659,2]
[339537971,1727682657755,-151.0,0.00014659,2]
[339537972,1727682657765,-151.043465,0.00014659,2]
[339537973,1727682657775,-769.25343,0.00014659,2]
[339537974,1727682657785,-769.25343,0.00014659,2]
[339537975,1727682657794,-757.25,0.00014659,2]
[339537976,1727682657804,-265.30307005,0.00014659,2]
[339537977,1727682657813,-578.656391,0.00014659,2]
[339537978,1727682657823,-542.17,0.00014659,2]
[339537979,1727682657832,-500.0,0.00014659,2]
[339537980,1727682657841,-769.25343,0.00014659,2]
[339537981,1727682657851,-769.25343,0.00014659,2]
[339537982,1727682657860,-500.0,0.00014659,2]
[339537983,1727682657870,-500.0,0.00014659,2]
[339537984,1727682657879,-500.0,0.00014659,2]
[339537985,1727682657888,-500.0,0.00014659,2]
[339537986,1727682657898,-500.0,0.00014659,2]
[339537987,1727682657908,-500.0,0.00014659,2]
[339537988,1727682657917,-500.0,0.00014659,2]
[339537989,1727682657926,-895.7,0.00014659,2]
[339537990,1727682657935,-519.14,0.00014659,2]
[339537991,1727682657944,-308.91139697,0.0001466,2]
[339537992,1727682657953,-505.99502051,0.0001466,2]
[339537993,1727682657963,-500.0,0.0001466,2]
[339537994,1727682657972,-500.0,0.0001466,2]
[339537995,1727682657981,-500.0,0.0001466,2]
[339537996,1727682657990,-500.0,0.0001466,2]
[339537997,1727682657999,-500.0,0.0001466,2]
[339537998,1727682658009,-405.99476191,0.0001466,2]
[339537999,1727682658019,-500.0,0.0001466,2]
[339538000,1727682658029,-504.1055798,0.0001466,2]
[339538001,1727682658039,-500.0,0.0001466,2]
[339538002,1727682658048,-500.0,0.0001466,2]
[339538003,1727682658058,-232.73189227,0.0001466,2]
[339538004,1727682658067,-509.46156332,0.0001466,2]
[339538005,1727682658077,-500.0,0.0001466,2]
[339538006,1727682658086,-500.0,0.0001466,2]
[339538007,1727682658096,-500.0,0.0001466,2]
[339538008,1727682658106,-506.87587464,0.0001466,2]
[339538009,1727682658116,-500.0,0.0001466,2]
[339538010,1727682658125,-500.0,0.0001466,2]
[339538011,1727682658134,-500.0,0.0001466,2]
[339538012,1727682658144,-500.0,0.0001466,2]
[339538013,1727682658153,-500.0,0.0001466,2]
[339538014,1727682658163,-500.0,0.0001466,2]
[339538015,1727682658172,-500.0,0.0001466,2]
[339538016,1727682658182,-500.0,0.0001466,2]
[339538017,1727682658191,-500.0,0.0001466,2]
[339538018,1727682658200,-500.0,0.0001466,2]
[339538019,1727682658210,-507.37077679,0.0001466,2]
[339538020,1727682658220,-388.90580078,0.0001466,2]
[339538021,1727682658229,-500.0,0.0001466,2]
[339538022,1727682658239,-341.48666955,0.0001466,2]
[339538023,1727682658248,-500.0,0.0001466,2]
[339538024,1727682658257,-500.0,0.0001466,2]
[339538025,1727682658267,-500.0,0.0001466,2]
[339538026,1727682658276,-500.0,0.0001466,2]
[339538027,1727682658286,-500.0,0.0001466,2]
[339538028,1727682658296,-500.0,0.0001466,2]
[339538029,1727682658305,-500.0,0.0001466,2]
[339538030,1727682658314,-504.55062437,0.0001466,2]
[339538031,1727682658324,-500.0,0.0001466,2]
[339538032,1727682658332,-151.0,0.0001466,2]
[339538033,1727682658342,-151.0,0.0001466,2]
[339538034,1727682658351,-151.0,0.0001466,2]
[339538035,1727682658361,-151.0,0.0001466,2]
[339538036,1727682658374,-151.0,0.0001466,2]
[339538037,1727682658384,-151.0,0.0001466,2]
[339538038,1727682658394,-1993.848234,0.0001466,2]
[339538039,1727682658403,-1993.848234,0.0001466,2]
[339538040,1727682658414,-1394.061828,0.0001466,2]
[339538041,1727682658424,-1394.061828,0.0001466,2]
[339538042,1727682658433,-5032.225479,0.0001466,2]
[339538043,1727682658444,-238.831828,0.0001466,2]
[339538044,1727682658453,-5032.225479,0.0001466,2]
[339538045,1727682658462,-238.831828,0.0001466,2]
[339538046,1727682658471,-151.0,0.0001466,2]
[339538047,1727682658481,-247.291262,0.0001466,2]
[339538048,1727682658490,-247.291262,0.0001466,2]
[339538049,1727682658499,-5944.207407,0.0001466,2]
[339538050,1727682658508,-1000.0,0.0001466,2]
[339538051,1727682658518,-659.4,0.0001467,2]
[339538052,1727682658528,-512.23701598,0.0001467,2]
[339538053,1727682658539,-500.0,0.0001467,2]
[339538054,1727682658549,-500.0,0.0001467,2]
[339538055,1727682658559,-657.07,0.0001467,2]
[339538056,1727682658568,-500.0,0.0001467,2]
[339538057,1727682658577,-593.51017427,0.0001467,2]
[339538058,1727682658587,-500.0,0.0001467,2]
[339538059,1727682658596,-500.0,0.0001467,2]
[339538060,1727682658605,-500.0,0.0001467,2]
[339538061,1727682658615,-500.0,0.0001467,2]
[339538062,1727682658624,-585.54,0.0001467,2]
[339538063,1727682658633,-500.0,0.0001467,2]
[339538064,1727682658642,-500.0,0.0001467,2]
[339538065,1727682658652,-500.0,0.0001467,2]
[339538066,1727682658662,-500.0,0.0001467,2]
[339538067,1727682658671,-625.56,0.0001467,2]
[339538068,1727682658680,-500.0,0.0001467,2]
[339538069,1727682658690,-500.0,0.0001467,2]
[339538070,1727682658699,-637.44,0.0001467,2]
[339538071,1727682658709,-1584.19,0.0001467,2]
[339538072,1727682658718,-500.0,0.0001467,2]
[339538073,1727682658728,-500.0,0.0001467,2]
[339538074,1727682658736,-500.0,0.0001467,2]
[339538075,1727682658746,-500.0,0.0001467,2]
[339538076,1727682658755,-500.0,0.0001467,2]
[339538077,1727682658765,-510.68,0.0001467,2]
[339538078,1727682658774,-500.0,0.0001467,2]
[339538079,1727682658785,-516.43,0.0001467,2]
[339538080,1727682658794,-500.0,0.0001467,2]
[339538081,1727682658803,-500.0,0.0001467,2]
[339538082,1727682658813,-562.33731516,0.0001467,2]
[339538083,1727682658823,-1265.9,0.0001467,2]
[339538084,1727682658832,-368.14011945,0.0001467,2]
[339538085,1727682658842,-510.79411968,0.0001467,2]
[339538086,1727682658851,-500.0,0.0001467,2]
[339538087,1727682658861,-500.0,0.0001467,2]
[339538088,1727682658870,-1872.45,0.0001467,2]
[339538089,1727682658879,-500.0,0.0001467,2]
[339538090,1727682658888,-500.0,0.0001467,2]
[339538091,1727682658898,-500.0,0.0001467,2]
[339538092,1727682658909,-500.0,0.0001467,2]
[339538093,1727682658918,-500.0,0.0001467,2]
[339538094,1727682658927,-500.0,0.0001467,2]
[339538095,1727682658936,-500.0,0.0001467,2]
[339538096,1727682658946,-606.81,0.0001467,2]
[339538097,1727682658956,-1050.2,0.0001467,2]
[339538098,1727682658965,-500.0,0.0001467,2]
[339538099,1727682658975,-151.0,0.0001467,2]
[339538100,1727682658984,-500.0,0.0001467,2]
[339538101,1727682658994,-578.15,0.0001467,2]
[339538102,1727682659004,-563.51,0.0001467,2]
[339538103,1727682659014,-741.09,0.0001467,2]
[339538104,1727682659023,-151.0,0.0001467,2]
[339538105,1727682659036,-270.25630527,0.0001467,2]
[339538106,1727682659046,-151.0,0.0001467,2]
[339538107,1727682659057,-500.0,0.0001467,2]
[339538108,1727682659067,-500.0,0.0001467,2]
[339538109,1727682659076,-500.0,0.0001467,2]
[339538110,1727682659087,-500.0,0.0001467,2]
[339538111,1727682659096,-500.0,0.0001467,2]
[339538112,1727682659106,-500.0,0.0001467,2]
[339538113,1727682659115,-589.05,0.0001467,2]
[339538114,1727682659125,-151.0,0.0001467,2]
[339538115,1727682659135,-151.0,0.0001467,2]
[339538116,1727682659145,-151.0,0.0001467,2]
[339538117,1727682659155,-549.86512925,0.0001467,2]
[339538118,1727682659165,-500.0,0.0001467,2]
[339538119,1727682659175,-1770.36,0.0001467,2]
[339538120,1727682659186,-174.515632,0.0001467,2]
[339538121,1727682659197,-174.515632,0.0001467,2]
[339538122,1727682659207,-191.612687,0.0001467,2]
[339538123,1727682659217,-500.0,0.0001467,2]
[339538124,1727682659228,-2673.66,0.0001467,2]
[339538125,1727682659238,-235.203779,0.0001467,2]
[339538126,1727682659248,-500.0,0.0001467,2]
[339538127,1727682659258,-500.0,0.0001467,2]
[339538128,1727682659268,-767.564565,0.0001467,2]
[339538129,1727682659278,-767.564565,0.0001467,2]
[339538130,1727682659295,-4480.614945,0.0001467,2]
[339538131,1727682659305,-500.0,0.00014673,2]
[339538132,1727682659316,-500.0,0.00014673,2]
[339538133,1727682659326,-500.0,0.00014673,2]
[339538134,1727682659336,-500.0,0.00014673,2]
[339538135,1727682659346,-500.0,0.00014673,2]
[339538136,1727682659356,-500.0,0.00014673,2]
[339538137,1727682659369,-600.77844745,0.00014673,2]
[339538138,1727682659381,-500.0,0.00014673,2]
[339538139,1727682659391,-151.75054518,0.00014673,2]
[339538140,1727682659401,-607.55261792,0.00014673,2]
[339538141,1727682659411,-500.0,0.00014673,2]
[339538142,1727682659421,-500.0,0.00014673,2]
[339538143,1727682659433,-500.0,0.00014673,2]
[339538144,1727682659444,-507.70077374,0.00014673,2]
[339538145,1727682659456,-500.0,0.00014673,2]
[339538146,1727682659466,-383.09768856,0.00014673,2]
[339538147,1727682659476,-500.0,0.00014673,2]
[339538148,1727682659485,-500.0,0.00014673,2]
[339538149,1727682659495,-500.0,0.00014673,2]
[339538150,1727682659504,-541.0,0.00014674,2]
[339538151,1727682659514,-1000.0,0.00014683,2]
[339538152,1727682659523,-525.968,0.000147,2]
[339538153,1727682659534,-150.217,0.000147,2]
[339538154,1727682659546,-1218.649,0.000147,2]
[339538155,1727682659557,-150.061,0.000147,2]
[339538156,1727682659568,-55966.0,0.000147,2]
[339538157,1727682659578,-362.32799969,0.000147,2]
[339538158,1727682659589,-1000.0,0.000147,2]
[339538159,1727682659599,-1000.0,0.000147,2]
[339538160,1727682659609,-1000.0,0.000147,2]
[339538161,1727682659619,-1000.0,0.000147,2]
[339538162,1727682659629,-151.032,0.000147,2]
[339538163,1727682659639,-1000.0,0.000147,2]
[339538164,1727682659665,-1000.0,0.000147,2]
[339538165,1727682659676,-1079.36157123,0.000147,2]
[339538166,1727682659687,-1008.2655006,0.000147,2]
[339538167,1727682659697,-1000.0,0.000147,2]
[339538168,1727682659707,-541.0,0.00014701,2]
[339538169,1727682659716,-1000.0,0.00014711,2]
[339538170,1727682659726,-172.736733,0.00014727,2]
[339538171,1727682659736,-220.438095,0.00014727,2]
[339538172,1727682659746,-172.736733,0.00014727,2]
[339538173,1727682659756,-409.992859,0.00014727,2]
[339538174,1727682659766,-220.438095,0.00014727,2]
[339538175,1727682659775,-224.434354,0.00014727,2]
[339538176,1727682659787,-409.992859,0.00014727,2]
[339538177,1727682659797,-224.434354,0.00014727,2]
[339538178,1727682659806,-1062.484411,0.00014727,2]
[339538179,1727682659817,-1062.484411,0.00014727,2]
[339538180,1727682659826,-151.0,0.00014727,2]
[339538181,1727682659836,-151.0,0.00014727,2]
[339538182,1727682659845,-151.0,0.00014727,2]
[339538183,1727682659856,-403.053036,0.00014727,2]
[339538184,1727682659867,-403.053036,0.00014727,2]
[339538185,1727682659877,-151.0,0.00014727,2]
[339538186,1727682659887,-151.0,0.00014727,2]
[339538187,1727682659898,-399.972793,0.00014727,2]
[339538188,1727682659908,-151.0,0.00014727,2]
[339538189,1727682659919,-399.972793,0.00014727,2]
[339538190,1727682659930,-151.0,0.00014727,2]
[339538191,1727682659940,-1590.015161,0.00014727,2]
[339538192,1727682659950,-1590.015161,0.00014727,2]
[339538193,1727682659961,-581.735919,0.00014727,2]
[339538194,1727682659971,-1099.763884,0.00014727,2]
[339538195,1727682659981,-581.735919,0.00014727,2]
[339538196,1727682659990,-1099.763884,0.00014727,2]
[339538197,1727682660001,-151.0,0.00014727,2]
[339538198,1727682660011,-151.0,0.00014727,2]
[339538199,1727682660020,-578.656391,0.00014727,2]
[339538200,1727682660031,-578.656391,0.00014727,2]
[339538201,1727682660042,-1500.0,0.00014727,2]
[339538202,1727682660053,-1500.0,0.00014727,2]
[339538203,1727682660063,-697.83561304,0.00014727,2]
[339538204,1727682660073,-1500.0,0.00014727,2]
[339538205,1727682660083,-1500.0,0.00014727,2]
[339538206,1727682660093,-1500.0,0.00014727,2]
[339538207,1727682660102,-1500.0,0.00014727,2]
[339538208,1727682660112,-541.0,0.00014729,2]
[339538209,1727682660122,-1000.0,0.00014749,2]
[339538210,1727682660133,-2000.0,0.00014755,2]
[339538211,1727682660143,-1269.49030785,0.00014755,2]
[339538212,1727682660153,-340.10878567,0.00014755,2]
[339538213,1727682660162,-2000.0,0.00014755,2]
[339538214,1727682660172,-2000.0,0.00014755,2]
[339538215,1727682660182,-2000.0,0.00014755,2]
[339538216,1727682660193,-541.0,0.00014756,2]
[339538217,1727682660203,-151.0,0.00014782,2]
[339538218,1727682660215,-151.0,0.00014782,2]
[339538219,1727682660225,-258.053911,0.00014782,2]
[339538220,1727682660235,-258.053911,0.00014782,2]
[339538221,1727682660246,-151.0,0.00014782,2]
[339538222,1727682660256,-2500.0,0.00014782,2]
[339538223,1727682660266,-2500.0,0.00014782,2]
[339538224,1727682660276,-1443.87219005,0.00014782,2]
[339538225,1727682660287,-2500.0,0.00014782,2]
[339538226,1727682660297,-541.0,0.00014784,2]
[339538227,1727682660306,-213.0,0.000148,2]
[339538228,1727682660317,-854.87597893,0.0001481,2]
[339538229,1727682660327,-800.78011353,0.0001481,2]
[339538230,1727682660337,-3000.0,0.0001481,2]
[339538231,1727682660347,-541.0,0.00014811,2]
[339538232,1727682660356,-884.96402517,0.00014836,2]
[339538233,1727682660369,-3500.0,0.00014837,2]
[339538234,1727682660379,-541.0,0.00014838,2]
[339538235,1727682660389,-4000.0,0.00014864,2]
[339538236,1727682660399,-541.0,0.00014866,2]
[339538237,1727682660409,-448.42111602,0.00014879,2]
[339538238,1727682660418,-4500.0,0.00014892,2]
[339538239,1727682660428,-541.0,0.00014893,2]
[339538240,1727682660438,-779.64735123,0.00014912,2]
[339538241,1727682660449,-5000.0,0.00014919,2]
[339538242,1727682660460,-541.0,0.00014921,2]
[339538243,1727682660470,-500.0,0.00014933,2]
[339538244,1727682660480,-500.0,0.00014933,2]
[339538245,1727682660490,-691.06,0.00014933,2]
[339538246,1727682660500,-500.0,0.00014933,2]
[339538247,1727682660510,-500.0,0.00014933,2]
[339538248,1727682660520,-500.0,0.00014933,2]
[339538249,1727682660530,-530.64572548,0.00014933,2]
[339538250,1727682660540,-1210.44,0.00014933,2]
[339538251,1727682660550,-500.0,0.00014933,2]
[339538252,1727682660560,-500.0,0.00014933,2]
[339538253,1727682660570,-500.0,0.00014933,2]
[339538254,1727682660580,-500.0,0.00014933,2]
[339538255,1727682660590,-500.0,0.00014933,2]
[339538256,1727682660601,-500.0,0.00014933,2]
[339538257,1727682660611,-501.87,0.00014933,2]
[339538258,1727682660621,-500.0,0.00014933,2]
[339538259,1727682660631,-500.0,0.00014933,2]
[339538260,1727682660640,-500.0,0.00014933,2]
[339538261,1727682660650,-500.0,0.00014933,2]
[339538262,1727682660660,-500.0,0.00014933,2]
[339538263,1727682660670,-521.80205614,0.00014933,2]
[339538264,1727682660681,-455.90468222,0.00014933,2]
[339538265,1727682660691,-500.0,0.00014933,2]
[339538266,1727682660701,-500.0,0.00014933,2]
[339538267,1727682660711,-500.0,0.00014933,2]
[339538268,1727682660720,-500.0,0.00014933,2]
[339538269,1727682660730,-602.36,0.00014933,2]
[339538270,1727682660739,-508.81,0.00014933,2]
[339538271,1727682660749,-500.0,0.00014933,2]
[339538272,1727682660759,-500.0,0.00014933,2]
[339538273,1727682660768,-500.0,0.00014933,2]
[339538274,1727682660778,-565.61,0.00014933,2]
[339538275,1727682660789,-911.68,0.00014933,2]
[339538276,1727682660798,-500.0,0.00014933,2]
[339538277,1727682660808,-500.0,0.00014933,2]
[339538278,1727682660818,-500.0,0.00014933,2]
[339538279,1727682660827,-500.0,0.00014933,2]
[339538280,1727682660837,-500.0,0.00014933,2]
[339538281,1727682660847,-151.0,0.00014933,2]
[339538282,1727682660857,-500.0,0.00014933,2]
[339538283,1727682660867,-176.402994,0.00014933,2]
[339538284,1727682660877,-151.0,0.00014933,2]
[339538285,1727682660886,-500.0,0.00014933,2]
[339538286,1727682660896,-176.402994,0.00014933,2]
[339538287,1727682660906,-500.0,0.00014933,2]
[339538288,1727682660916,-525.32949334,0.00014933,2]
[339538289,1727682660926,-500.0,0.00014933,2]
[339538290,1727682660936,-500.0,0.00014933,2]
[339538291,1727682660946,-500.0,0.00014933,2]
[339538292,1727682660955,-506.67,0.00014933,2]
[339538293,1727682660965,-579.35,0.00014933,2]
[339538294,1727682660974,-500.0,0.00014933,2]
[339538295,1727682660984,-285.03028866,0.00014933,2]
[339538296,1727682660993,-620.36,0.00014933,2]
[339538297,1727682661003,-228.218623,0.00014933,2]
[339538298,1727682661013,-228.218623,0.00014933,2]
[339538299,1727682661022,-500.0,0.00014933,2]
[339538300,1727682661034,-151.0,0.00014933,2]
[339538301,1727682661046,-500.0,0.00014933,2]
[339538302,1727682661055,-634.4,0.00014933,2]
[339538303,1727682661065,-500.0,0.00014933,2]
[339538304,1727682661076,-500.0,0.00014933,2]
[339538305,1727682661085,-500.0,0.00014933,2]
[339538306,1727682661095,-500.0,0.00014933,2]
[339538307,1727682661104,-151.0,0.00014933,2]
[339538308,1727682661113,-162.430967,0.00014933,2]
[339538309,1727682661123,-500.0,0.00014933,2]
[339538310,1727682661132,-500.0,0.00014933,2]
[339538311,1727682661142,-500.0,0.00014933,2]
[339538312,1727682661151,-2900.38,0.00014933,2]
[339538313,1727682661162,-500.0,0.00014933,2]
[339538314,1727682661171,-500.0,0.00014933,2]
[339538315,1727682661181,-500.0,0.00014933,2]
[339538316,1727682661191,-500.0,0.00014933,2]
[339538317,1727682661201,-500.0,0.00014933,2]
[339538318,1727682661210,-500.0,0.00014933,2]
[339538319,1727682661221,-500.0,0.00014933,2]
[339538320,1727682661231,-500.0,0.00014933,2]
[339538321,1727682661241,-582.4,0.00014933,2]
[339538322,1727682661251,-500.0,0.00014933,2]
[339538323,1727682661261,-500.0,0.00014933,2]
[339538324,1727682661271,-500.0,0.00014933,2]
[339538325,1727682661283,-500.0,0.00014933,2]
[339538326,1727682661295,-500.0,0.00014933,2]
[339538327,1727682661305,-1452.45,0.00014933,2]
[339538328,1727682661314,-500.0,0.00014933,2]
[339538329,1727682661323,-654.28,0.00014933,2]
[339538330,1727682661332,-500.0,0.00014933,2]